Cogmind - Beta 17.1 @@@ ROGUE MODE // 2026.09.19 @ 10:30:27 Player: osman sinnoks Result: Destroyed by 0P-1RD(j) with Overtuned Pulse Rifle Performance ------------- Evolutions (2) 1000 Regions Visited (11) 2200 Robots Destroyed (128) 640 Value Destroyed (4501) 4501 Prototype IDs (9) 180 Alien Tech Used (0) 0 Bonus (1178) 1178 TOTAL SCORE: 9699 Bonus ------- High Alert Combat Kills 261 Follower Combat Kills 471 Entered Garrisons 200 Aligned with FarCom 300 Friendly Fire -54 Cogmind --------- Core Integrity 0/550 Matter 290/300 Energy 280/280 System Corruption 0% Temperature Cool (49) Movement Treading (225) Ox1 Location -8/Scraptown Parts ------- > --- POWER (1) -------- Cooled Ion Engine > --- PROPULSION (2) --- Advanced Treads Advanced Treads > --- UTILITY (5) ------ Cooling System High-capacity Storage Unit Advanced Targeting Computer Makeshift Light Armor Plating > --- WEAPON (3) ------- Enhanced Autogun > --- INVENTORY (20) --- Nuclear Core Nuclear Core Advanced Treads High-capacity Matter Pod (200) Advanced Targeting Computer Hardened Medium Armor Plating Insulated Plating Improved Shield Generator System Shield Enhanced Autogun Enhanced Autogun Improved Datajack CPS Tube (2) Heavy Mace Peak State ------------ > --- POWER ------------ Cooled Ion Engine > --- PROPULSION ------- Advanced Treads Medium Treads > --- UTILITY ---------- High-capacity Storage Unit Signal Interpreter Advanced Targeting Computer Makeshift Light Armor Plating Improved Hacking Suite > --- WEAPON ----------- Enhanced Autogun Gauss Rifle Bore Cannon > --- INVENTORY -------- Nuclear Core Nuclear Core Advanced Treads Advanced Treads Advanced Treads Advanced Treads Cooling System High-capacity Matter Pod Advanced Targeting Computer Hardened Medium Armor Plating Insulated Plating Improved Shield Generator System Shield Enhanced Autogun Enhanced Autogun Gauss Rifle Gauss Rifle Improved Datajack CPS Tube Heavy Mace [Rating: 43] Favorites ----------- Power Improved Ion Engine Engine Improved Ion Engine Power Core Nuclear Core Propulsion Light Treads Treads Light Treads Utility Advanced Targeting Computer Device Shield Generator Storage High-capacity Storage Unit Processor Advanced Targeting Computer Hackware Hacking Suite Protection Hardened Medium Armor Plating Weapon Enhanced Autogun Ballistic Gun Enhanced Autogun Ballistic Cannon Flak Cannon Impact Weapon Heavy Mace Build | -11 -10 -10 -9 -9 -9 -8 -8 -8 -8 -8 -8 ------- Run | Yrd Mat Min Mat Min Exi Min Mat Gar Sto Rec Scr Slots Evolved 4 | . . . 2 . . . 2 . . . . Power . | . . . . . . . . . . . . Propulsion . | . . . . . . . . . . . . Utility 3 | . . . 2 . . . 1 . . . . Weapon 1 | . . . . . . . 1 . . . . Parts Attached 77 | 7 4 . 11 2 3 . 24 11 7 . 8 Power 11 | 1 1 . 2 . . . 2 3 2 . . Engine 8 | 1 1 . 2 . . . 1 2 1 . . Core 3 | . . . . . . . 1 1 1 . . Reactor . | . . . . . . . . . . . . Propulsion 22 | 2 . . 4 . . . 6 4 2 . 4 Treads 22 | 2 . . 4 . . . 6 4 2 . 4 Leg . | . . . . . . . . . . . . Wheel . | . . . . . . . . . . . . Hover . | . . . . . . . . . . . . Flight . | . . . . . . . . . . . . Utility 21 | 2 1 . 4 2 2 . 7 . 1 . 2 Device 6 | 1 . . 1 1 2 . 1 . . . . Storage 3 | 1 1 . . . . . 1 . . . . Processor 3 | . . . 2 . . . 1 . . . . Hackware 3 | . . . . . . . 1 . 1 . 1 Protection 6 | . . . 1 1 . . 3 . . . 1 Artifact . | . . . . . . . . . . . . Weapon 23 | 2 2 . 1 . 1 . 9 4 2 . 2 Energy Gun . | . . . . . . . . . . . . Energy Cannon . | . . . . . . . . . . . . Ballistic Gun 16 | 2 2 . 1 . . . 6 2 2 . 1 Ballistic Cannon 6 | . . . . . 1 . 3 1 . . 1 Launcher . | . . . . . . . . . . . . Special Weapon . | . . . . . . . . . . . . Impact Weapon 1 | . . . . . . . . 1 . . . Slashing Weapon . | . . . . . . . . . . . . Piercing Weapon . | . . . . . . . . . . . . Special Melee Weapon . | . . . . . . . . . . . . Unidentified Prototypes 3 | . . . . . 2 . 1 . . . . Parts Lost 19 | . . . 1 . . . 8 2 . . 8 Power 1 | . . . . . . . . 1 . . . Propulsion 6 | . . . . . . . 3 . . . 3 Utility 7 | . . . 1 . . . 4 1 . . 1 Weapon 5 | . . . . . . . 1 . . . 4 Highest Loss Streak 8 | . . . 1 . . . 3 1 . . 8 To Critical Strikes . | . . . . . . . . . . . . Average Backups 17 | 1 11 15 14 15 15 15 16 19 20 20 19 Power 1 | 1 2 2 1 1 1 1 1 1 2 2 2 Propulsion 3 | . 1 3 2 2 2 2 2 4 4 4 3 Utility 7 | . 6 7 7 9 9 10 7 6 6 7 6 Weapon 4 | . 1 3 3 3 2 2 4 6 6 6 5 Tool/Special . | . . . . . . . . . . . . Unused Backups 40 | . 5 . 5 . . . 11 3 5 . 11 Power 5 | . . . 2 . . . . 1 1 . 1 Propulsion 8 | . . . 2 . . . 2 . 3 . 1 Utility 14 | . 4 . 1 . . . 3 . . . 6 Weapon 10 | . 1 . . . . . 5 2 1 . 1 Tool/Special 3 | . . . . . . . 1 . . . 2 Average Slot Usage (%) 99 | . 100 100 96 100 99 100 99 100 100 100 99 Engine 9 | . 14 14 11 11 11 11 6 6 3 9 9 Core 1 | . . . . . . . 2 2 5 . . Treads 20 | . 28 28 22 22 22 22 17 18 18 18 18 Device 6 | . 14 14 14 11 10 11 7 9 2 . . Storage 10 | . 14 14 11 11 11 11 9 9 9 9 9 Processor 13 | . . . 11 11 11 11 18 18 18 18 17 Hackware 3 | . . . . . . . 1 . 6 9 8 Protection 7 | . . . 4 11 11 11 9 9 9 9 9 Ballistic Gun 18 | . 28 28 22 22 14 11 16 14 16 18 18 Ballistic Cannon 5 | . . . . . 7 11 10 9 9 7 . Impact Weapon 1 | . . . . . . . . 3 1 1 8 Peak Build Rating 43 | 7 9 9 18 19 25 19 31 33 37 37 43 Average Rating 26 | 4 8 9 14 18 19 19 28 31 35 37 38 On Entrance 19 | . 7 9 9 18 19 19 19 30 32 37 37 Avg Prop Armor Cover (%) . | . . . . . . . . . . . . Naked Turns . | . . . . . . . . . . . . Heaviest Build 71 | 12 30 29 42 42 43 43 71 71 65 64 68 Greatest Support 50 | 40 40 40 40 40 40 40 43 40 44 44 50 Greatest Overweight (x) 1 | . . . 1 1 1 1 1 1 1 1 1 Average Overweight (x) . | . . . . . . 1 . 1 1 1 1 Largest Inventory Capacity 20 | 8 15 15 15 15 15 15 20 20 20 20 20 Average Capacity 17 | 7 14 15 15 15 15 15 17 20 20 20 20 Most Carried 20 | 4 15 15 15 15 15 15 20 20 20 20 20 Average Carried 17 | 1 11 15 14 15 14 15 16 19 19 20 19 Final Capacity 20 | 8 15 15 15 15 15 15 20 20 20 20 20 Final Carried 20 | 2 15 15 15 15 15 15 20 20 20 20 14 Class Distribution -------------------- 40% | Mutant 16% | Commander-Skirmisher 15% | Commander-Mutant 15% | Tank 12% | Skirmisher Dominant Class ---------------- Mutant | -10/Materials Mutant | -10/Mines Mutant | -9/Materials Mutant | -9/Mines Mutant | -9/Exiles Mutant | -8/Mines Tank | -8/Materials Skirmisher | -8/Garrison Commander-Skirmisher | -8/Storage Commander-Skirmisher | -8/Recycling Commander-Mutant | -8/Scraptown Resources | -11 -10 -10 -9 -9 -9 -8 -8 -8 -8 -8 -8 ----------- Run | Yrd Mat Min Mat Min Exi Min Mat Gar Sto Rec Scr Matter Collected 4047 | 279 490 16 332 120 50 . 1472 574 425 52 237 Remotely . | . . . . . . . . . . . . Salvage Created 4578 | 73 658 . 527 200 . . 1624 446 643 174 233 Parts 291 | 9 55 . 28 16 . . 108 25 27 9 14 Haulers Intercepted 11 | . 2 . . . . . 6 . 3 . . Recyclers Shooed 4 | . 1 . 1 . . . 1 . 1 . . Parts Field Recycled . | . . . . . . . . . . . . Retrieved Matter . | . . . . . . . . . . . . Parts Self-Destructed . | . . . . . . . . . . . . Prevented . | . . . . . . . . . . . . Parts Restored . | . . . . . . . . . . . . Kills | -11 -10 -10 -9 -9 -9 -8 -8 -8 -8 -8 -8 ------- Run | Yrd Mat Min Mat Min Exi Min Mat Gar Sto Rec Scr Combat Hostiles Destroyed 95 | . 15 . 9 9 . . 36 14 7 2 3 Melee 1 | . . . . . . . . 1 . . . Guns 70 | . 15 . 9 9 . . 22 8 3 2 2 Cannons 24 | . . . . . . . 14 5 4 . 1 Classes Destroyed 16 | 2 5 . 1 . . . 5 . . . 3 Worker 4 | . . . . . . . 3 . 1 . . Tunneler 2 | 1 1 . . . . . . . . . . Hauler 11 | . 2 . . . . . 6 . 3 . . Recycler 8 | 1 1 . 2 . . . 1 . 2 1 . Operator 3 | . 2 . 1 . . . . . . . . Watcher 5 | . 2 . . . . . 2 . 1 . . Swarmer 30 | . 8 . 1 7 . . 9 5 . . . Grunt 30 | . 7 . 4 . . . 13 3 3 . . Duelist 2 | . . . . . . . 1 . 1 . . Sentry 26 | . . . 4 2 . . 9 6 3 2 . Specialist 2 | . . . . . . . 2 . . . . Hunter 1 | . . . . . . . 1 . . . . Heavy 1 | . . . . . . . 1 . . . . Scientist 1 | . . . . . . . . . . . 1 Scrapper 2 | . . . . . . . . . . . 2 Elite 1 | . . . . . . . . . . . 1 Best Kill Streak 8 | 2 4 . 4 4 . . 8 3 5 1 2 Combat Bots Only 8 | . 4 . 3 4 . . 8 3 2 1 2 Max Kills in Single Turn 3 | 1 2 . 1 2 . . 3 2 2 1 1 Gunslinging 1 | . 1 . . 1 . . . . . . . Exploded . | . . . . . . . . . . . . Melee 1 | . . . . . . . . 1 . . . Uniques/NPCs Destroyed . | . . . . . . . . . . . . Combat | -11 -10 -10 -9 -9 -9 -8 -8 -8 -8 -8 -8 -------- Run | Yrd Mat Min Mat Min Exi Min Mat Gar Sto Rec Scr Hostile Shots Fired 570 | . 65 . 53 26 . . 221 66 25 . 114 Missed 156 | . 23 . 13 4 . . 58 19 4 . 35 Hits 414 | . 42 . 40 22 . . 163 47 21 . 79 Melee 5 | . . . . . . . 3 . 2 . . Projectile 409 | . 42 . 40 22 . . 160 47 19 . 79 Critical Strikes 14 | . . . 2 . . . 5 1 1 . 5 Damage Taken 5931 | . 361 . 376 159 . . 2054 853 347 . 1781 Core 637 | . 59 . 16 4 . . 215 100 42 . 201 Absorbed by Shields 464 | . . . 144 61 . . 259 . . . . Regen/Repaired (Parts) 121 | . . . . . . . 121 . . . . Core Remaining (%) 90 | 100 . 76 . . . 95 . . . . . Volleys Fired 279 | 3 54 . 35 10 . . 98 37 28 3 11 Largest 3 | 2 2 . 2 2 . . 3 3 3 3 3 Hottest 101 | 40 40 . 43 43 . . 99 99 90 90 101 Shots Fired 696 | 5 108 . 68 20 . . 282 95 76 9 33 Gun 542 | 5 108 . 68 20 . . 199 60 53 6 23 Cannon 154 | . . . . . . . 83 35 23 3 10 Launcher . | . . . . . . . . . . . . Special . | . . . . . . . . . . . . Kinetic 696 | 5 108 . 68 20 . . 282 95 76 9 33 Thermal . | . . . . . . . . . . . . Explosive . | . . . . . . . . . . . . Electromagnetic . | . . . . . . . . . . . . Robot Hit Streak 29 | 3 13 . 29 11 . . 10 22 9 6 21 Robot Miss Streak 7 | 1 3 . 4 5 . . 7 3 3 . 1 Penetration Max 1 | . . . . . . . . . 1 . . Secondary Targets 9 | . 3 . . 3 . . 3 . . . . Max Gunslinging Chain 1 | . 1 . . 1 . . 1 . . . . Shots Hit Robots 482 | 4 66 . 53 12 . . 188 75 54 4 26 Core Hits 264 | 2 34 . 23 11 . . 103 46 35 3 7 Critical Kills 1 | . . . . . . . . . . . 1 Critical Parts Destroyed 10 | . . . 1 . . . 3 2 . . 4 Critical Strikes 14 | . . . 1 . . . 5 3 . . 5 Destroy 12 | . . . 1 . . . 4 2 . . 5 Blast 2 | . . . . . . . 1 1 . . . Melee Attacks 28 | . . . . . . . . 20 2 4 2 Impact 28 | . . . . . . . . 20 2 4 2 Slashing . | . . . . . . . . . . . . Piercing . | . . . . . . . . . . . . Sneak Attacks 1 | . . . . . . . . . 1 . . Combat Hostiles . | . . . . . . . . . . . . Follow-up Attacks . | . . . . . . . . . . . . Damage Inflicted 9174 | 47 779 8 817 166 . . 3771 1734 1176 99 577 Guns 6179 | 47 777 . 817 163 . . 2507 733 690 73 372 Cannons 2561 | . . . . . . . 1231 705 420 . 205 Explosions . | . . . . . . . . . . . . Melee 344 | . . . . . . . . 296 48 . . Ramming 90 | . 2 8 . 3 . . 33 . 18 26 . Kinetic 8740 | 47 777 . 817 163 . . 3738 1438 1110 73 577 Thermal . | . . . . . . . . . . . . Explosive . | . . . . . . . . . . . . Electromagnetic . | . . . . . . . . . . . . Impact 344 | . . . . . . . . 296 48 . . Slashing . | . . . . . . . . . . . . Piercing . | . . . . . . . . . . . . Highest Corruption . | . . . . . . . . . . . . Average Corruption . | . . . . . . . . . . . . Corruption Purged . | . . . . . . . . . . . . Corruption Blocked . | . . . . . . . . . . . . Overload Shots . | . . . . . . . . . . . . Overflow Damage 62 | . . . . . . . 8 40 . . 14 Projectiles 22 | . . . . . . . 8 . . . 14 Explosions 40 | . . . . . . . . 40 . . . Melee . | . . . . . . . . . . . . Knockbacks 32 | . . . . . . . 18 3 11 . . Impact . | . . . . . . . . . . . . Kinetic 30 | . . . . . . . 17 3 10 . . Secondary 2 | . . . . . . . 1 . 1 . . Self-Inflicted Damage 98 | . . . . . . . . 98 . . . Shots 1 | . . . . . . . . 1 . . . Rammed 13 | . 1 1 . 2 . . 4 . 2 3 . Targets Rammed 15 | . 1 1 . 2 . . 4 . 3 4 . Kicked . | . . . . . . . . . . . . Crushed 2 | . . . . . . . . . 1 1 . Highest Temperature 399 | . 12 . 17 3 . . 399 26 218 38 345 Average Temperature 85 | . 7 . 6 3 . . 101 7 55 23 140 Received Heat Transfer 2114 | . 54 . 158 24 . . 786 285 144 . 663 Effects 9 | . . . . . . . 9 . . . . Shutdowns 1 | . . . . . . . 1 . . . . Energy Bleed 2 | . . . . . . . 2 . . . . Interference 5 | . . . . . . . 5 . . . . Matter Decay 1 | . . . . . . . 1 . . . . Siege Activations . | . . . . . . . . . . . . Martial Activations . | . . . . . . . . . . . . Shielding Activations . | . . . . . . . . . . . . Robots Disrupted . | . . . . . . . . . . . . Combat Hostiles . | . . . . . . . . . . . . Robots Corrupted . | . . . . . . . . . . . . Combat Hostiles . | . . . . . . . . . . . . Parts Fried . | . . . . . . . . . . . . Impact Corruptions . | . . . . . . . . . . . . Robots Melted . | . . . . . . . . . . . . Combat Hostiles . | . . . . . . . . . . . . Parts Melted 3 | . . . . . . . . . 1 . 2 Heat Transferred . | . . . . . . . . . . . . Parts Sabotaged . | . . . . . . . . . . . . Parts Stolen . | . . . . . . . . . . . . Parts Stripped . | . . . . . . . . . . . . Power Chain Reactions . | . . . . . . . . . . . . Alert | -11 -10 -10 -9 -9 -9 -8 -8 -8 -8 -8 -8 ------- Run | Yrd Mat Min Mat Min Exi Min Mat Gar Sto Rec Scr Maximum Alert Level 4 | . . . . . . . 2 4 2 . . Low Security (%) 64 | 100 100 100 100 100 . 100 37 . 5 100 . Level 1 18 | . . . . . . . 49 11 51 . . Level 2 10 | . . . . . . . 12 29 42 . . Level 3 4 | . . . . . . . . 39 . . . Level 4 2 | . . . . . . . . 19 . . . Level 5 . | . . . . . . . . . . . . High Security . | . . . . . . . . . . . . Max Security . | . . . . . . . . . . . . Peak Influence 1266 | 10 119 36 96 90 . . 548 1266 611 165 . Initial 607 | . . 36 . 24 . . . 356 607 165 . Average 194 | . 29 7 38 14 . . 221 772 395 17 . Influence Increases 3562 | 10 430 . 262 200 . . 1087 990 487 96 . Destroy 0b10 Robot/C 2020 | . 300 . 180 180 . . 720 420 180 40 . Destroy 0b10 Robot/NC 165 | 10 40 . 15 . . . 60 . 35 5 . Destroy Leader 432 | . 68 . 60 20 . . 206 20 58 . . Allied During Kill 231 | . . . . . . . . 45 164 22 . Successful Hack 78 | . 6 . 7 . . . 15 21 4 25 . Disable Machine 60 | . . . . . . . 15 . 45 . . Anti-Garrison Action 400 | . . . . . . . . 400 . . . Destroy Structure 86 | . 1 . . . . . 11 69 1 4 . Lose Combat Pursuer 90 | . 15 . . . . . 60 15 . . . Influence Decreases 3562 | 10 337 93 198 264 . . 539 292 1307 522 . Entered New Map 1189 | . . 57 . 40 . . . 192 639 261 . Time Decay 1848 | 10 292 36 198 224 . . 459 . 368 261 . Lost Part 100 | . . . . . . . 80 20 . . . Lost Ally 80 | . . . . . . . . 80 . . . Purge Threat 345 | . 45 . . . . . . . 300 . . Squads Dispatched 16 | . 4 . 2 . . . 8 . 2 . . Investigation 4 | . 2 . 1 . . . . . 1 . . Extermination . | . . . . . . . . . . . . Reinforcement 8 | . 2 . 1 . . . 5 . . . . Assault 1 | . . . . . . . . . 1 . . Garrison 3 | . . . . . . . 3 . . . . Intercept . | . . . . . . . . . . . . Searches Triggered . | . . . . . . . . . . . . Construction Impeded . | . . . . . . . . . . . . Haulers Reinforced . | . . . . . . . . . . . . Active Scanning Responses . | . . . . . . . . . . . . Cargo Convoy Interrupts . | . . . . . . . . . . . . Stealth | -11 -10 -10 -9 -9 -9 -8 -8 -8 -8 -8 -8 --------- Run | Yrd Mat Min Mat Min Exi Min Mat Gar Sto Rec Scr Distress Signals 7 | . 3 . 2 . . . 2 . . . . Communications Jammed . | . . . . . . . . . . . . Distress Signals . | . . . . . . . . . . . . Times Spotted 149 | . 32 . 12 9 . . 52 21 10 . 13 Peak Tracking Total 16 | . 7 . 5 3 . . 8 3 2 . 16 Tactical Retreats 6 | . 1 . . . . . 2 1 . . 2 Traps | -11 -10 -10 -9 -9 -9 -8 -8 -8 -8 -8 -8 ------- Run | Yrd Mat Min Mat Min Exi Min Mat Gar Sto Rec Scr Traps Triggered 7 | . 2 . 1 . . . . 3 1 . . Indirectly . | . . . . . . . . . . . . Trap Hack Attempts . | . . . . . . . . . . . . Triggered . | . . . . . . . . . . . . Disarmed . | . . . . . . . . . . . . Reprogrammed . | . . . . . . . . . . . . Reused . | . . . . . . . . . . . . Traps Extracted . | . . . . . . . . . . . . Installed . | . . . . . . . . . . . . Triggered . | . . . . . . . . . . . . Machines | -11 -10 -10 -9 -9 -9 -8 -8 -8 -8 -8 -8 ---------- Run | Yrd Mat Min Mat Min Exi Min Mat Gar Sto Rec Scr Machines Disabled 13 | . . . . . . . 1 6 3 . 3 Max in Single Turn 2 | . . . . . . . 1 2 1 . 1 Garrison Relay 4 | . . . . . . . . 4 . . . Phase Generator 1 | . . . . . . . . 1 . . . Machines Repaired . | . . . . . . . . . . . . Machines Dismantled . | . . . . . . . . . . . . Machines Sabotaged . | . . . . . . . . . . . . Overloaded Fab Kills . | . . . . . . . . . . . . Hacking | -11 -10 -10 -9 -9 -9 -8 -8 -8 -8 -8 -8 --------- Run | Yrd Mat Min Mat Min Exi Min Mat Gar Sto Rec Scr Machines Accessed 25 | . 2 . 3 . 1 . 4 2 4 7 2 Terminals 17 | . 2 . 2 . . . 2 2 4 5 . Fabricators . | . . . . . . . . . . . . Repair Stations 1 | . . . . . . . 1 . . . . Recycling Units . | . . . . . . . . . . . . Scanalyzers 1 | . . . 1 . . . . . . . . Garrison Access 1 | . . . . . . . 1 . . . . Total Hacks 95 | . 8 . 9 . 4 . 7 3 9 45 10 Successful 72 | . 5 . 6 . 4 . 4 2 5 36 10 Failed 22 | . 3 . 2 . . . 3 1 4 9 . Catastrophic 3 | . . . . . . . 1 1 . 1 . Database Lockouts 1 | . . . 1 . . . . . . . . Manual 17 | . 2 . 2 . 1 . 2 . 8 2 . Terminals 48 | . 8 . 4 . . . 3 3 9 21 . Fabricators . | . . . . . . . . . . . . Repair Stations 2 | . . . . . . . 2 . . . . Recycling Units . | . . . . . . . . . . . . Scanalyzers 5 | . . . 5 . . . . . . . . Garrison Access 2 | . . . . . . . 2 . . . . Terminal Hacks 63 | . 5 . 2 . 4 . . 2 5 35 10 Record 43 | . . . . . 4 . . . . 29 10 Part Schematic 1 | . . . . . . . . . . 1 . Robot Analysis 1 | . . . . . . . . . . 1 . Prototype ID Bank 3 | . 1 . 1 . . . . . . 1 . Open Door 3 | . . . . . . . . 1 2 . . Branch Access Points 1 | . . . . . . . . . . 1 . Terminal Index 1 | . 1 . . . . . . . . . . Alert Level 4 | . 2 . . . . . . . 1 1 . Unreport Threat 3 | . 1 . . . . . . . 2 . . Hauler Manifests 2 | . . . 1 . . . . . . 1 . Patrol Navigation 1 | . . . . . . . . 1 . . . Fabricator Hacks . | . . . . . . . . . . . . Repair Station Hacks 2 | . . . . . . . 2 . . . . Scan Component 1 | . . . . . . . 1 . . . . Repair 1 | . . . . . . . 1 . . . . Recycling Unit Hacks . | . . . . . . . . . . . . Scanalyzer 3 | . . . 3 . . . . . . . . Retrieve Study 3 | . . . 3 . . . . . . . . Garrison Access Hacks 1 | . . . . . . . 1 . . . . Unlock Access 1 | . . . . . . . 1 . . . . Unauthorized Hacks 3 | . . . 1 . . . 1 . . 1 . Terminals 3 | . . . 1 . . . 1 . . 1 . Botnet 3 | . . . 1 . . . 1 . . 1 . Fabricators . | . . . . . . . . . . . . Repair Stations . | . . . . . . . . . . . . Recycling Units . | . . . . . . . . . . . . Scanalyzers . | . . . . . . . . . . . . Garrison Access . | . . . . . . . . . . . . Data Cores Recovered . | . . . . . . . . . . . . Used . | . . . . . . . . . . . . Hacking Detections 15 | . 2 . 2 . . . 3 1 3 4 . Full Trace Events 1 | . . . . . . . . 1 . . . Feedback Events . | . . . . . . . . . . . . Feedback Blocked . | . . . . . . . . . . . . Robot Schematics Acquired . | . . . . . . . . . . . . Robots Built . | . . . . . . . . . . . . Authchips . | . . . . . . . . . . . . Time . | . . . . . . . . . . . . Total Robot Build Rating . | . . . . . . . . . . . . Part Schematics Acquired 1 | . . . . . . . . . . 1 . Parts Built . | . . . . . . . . . . . . Authchips . | . . . . . . . . . . . . Time . | . . . . . . . . . . . . Total Part Build Rating . | . . . . . . . . . . . . Part Studies Acquired 3 | . . . 3 . . . . . . . . Parts Repaired 1 | . . . . . . . 1 . . . . Time 38 | . . . . . . . 38 . . . . Parts Recycled . | . . . . . . . . . . . . Recycled Matter . | . . . . . . . . . . . . Retrieved Matter . | . . . . . . . . . . . . Retrieved Components . | . . . . . . . . . . . . Parts Scanalyzed . | . . . . . . . . . . . . Part Schematics Acquired . | . . . . . . . . . . . . Parts Damaged . | . . . . . . . . . . . . Bothacking | -11 -10 -10 -9 -9 -9 -8 -8 -8 -8 -8 -8 ------------ Run | Yrd Mat Min Mat Min Exi Min Mat Gar Sto Rec Scr Used RIF Installer . | . . . . . . . . . . . . Robots Hacked . | . . . . . . . . . . . . Non-combat . | . . . . . . . . . . . . Combat . | . . . . . . . . . . . . Robot Hacks Applied . | . . . . . . . . . . . . Relay Couplers Released 18 | . . . . . . . . 18 . . . Machine Destruction 18 | . . . . . . . . 18 . . . Fabnet Peak Effective % . | . . . . . . . . . . . . Robots Rewired 4 | . . . . . . . . 4 . . . Allies Hacked . | . . . . . . . . . . . . Hacks Repelled . | . . . . . . . . . . . . Allies | -11 -10 -10 -9 -9 -9 -8 -8 -8 -8 -8 -8 -------- Run | Yrd Mat Min Mat Min Exi Min Mat Gar Sto Rec Scr Total Allies 14 | . . . . . . . . 4 10 . . Largest Group 10 | . . . . . . . . 4 10 7 7 Highest-Rated Group 173 | . . . . . . . . 121 173 122 122 Highest-Rated Ally 39 | . . . . . . . . 39 29 29 29 Initial Warlord ECA Mod 7 | . . . . . . . . . 7 7 7 Total Orders . | . . . . . . . . . . . . Ally Attacks 143 | . . . . . . . . 49 26 . 68 Total Damage 1861 | . . . . . . . . 695 271 . 895 Kills 14 | . . . . . . . . 7 2 . 5 Allies Corrupted . | . . . . . . . . . . . . Allies Melted . | . . . . . . . . . . . . Intel | -11 -10 -10 -9 -9 -9 -8 -8 -8 -8 -8 -8 ------- Run | Yrd Mat Min Mat Min Exi Min Mat Gar Sto Rec Scr Active Infowar (turns) 2258 | 30 1816 231 177 . 4 . . . . . . Seismic 2254 | 30 1816 231 177 . . . . . . . . Cloaking 4 | . . . . . 4 . . . . . . Robot Analysis Total 1 | . . . . . . . . . . 1 . Derelict Logs Recovered 2 | . . . . 2 . . . . . . . Drone Launches . | . . . . . . . . . . . . Drone Recoveries . | . . . . . . . . . . . . Exploration | -11 -10 -10 -9 -9 -9 -8 -8 -8 -8 -8 -8 ------------- Run | Yrd Mat Min Mat Min Exi Min Mat Gar Sto Rec Scr Turns Passed 13605 | 75 1816 231 633 1138 835 62 2779 1318 842 1868 2008 Spaces Moved 5333 | 41 597 144 265 548 414 32 832 492 309 813 846 Core 12 | 12 . . . . . . . . . . . Treads 5321 | 29 597 144 265 548 414 32 832 492 309 813 846 Legs . | . . . . . . . . . . . . Wheels . | . . . . . . . . . . . . Hover . | . . . . . . . . . . . . Flight . | . . . . . . . . . . . . Fastest Speed 50 | 50 160 160 160 160 160 200 152 225 225 225 225 Average Speed 208 | 127 160 160 175 199 199 200 223 225 225 225 230 Slowest Speed 245 | 160 160 160 200 200 200 200 245 225 237 225 232 Overloaded Moves . | . . . . . . . . . . . . Propulsion Burnouts . | . . . . . . . . . . . . Robots Hopped . | . . . . . . . . . . . . Potential Cave-ins . | . . . . . . . . . . . . Cave-ins Triggered . | . . . . . . . . . . . . Exploration Rate (%) 58 | 3 92 40 34 98 87 12 64 69 53 97 57 Regions Visited 11 Branch Regions 7 Pre-discovered Areas 2 | . . . . 1 1 . . . . . . Known Exits Taken 3 | . . . . . . . 1 . 1 1 . Unknown Exits Taken 7 | 1 1 1 1 1 1 1 . . . . . Scrap Searched 3 | . . 1 . 1 . . . . . . 1 Spaces Dug 9 | . . . . . . . . 4 . 4 1 Terrain Destroyed 100 | . . . . . . . 8 86 . 4 2 Melee 9 | . . . . . . . . 4 . 4 1 Projectile 9 | . . . . . . . 8 . . . 1 AOE 82 | . . . . . . . . 82 . . . Terrain Rammed . | . . . . . . . . . . . . Walls Destroyed . | . . . . . . . . . . . . Machines Disabled . | . . . . . . . . . . . . Actions | -11 -10 -10 -9 -9 -9 -8 -8 -8 -8 -8 -8 --------- Run | Yrd Mat Min Mat Min Exi Min Mat Gar Sto Rec Scr Total 7248 | 59 1358 144 370 574 423 31 1560 610 410 834 875 Wait 1309 | . 672 . 39 7 . . 535 4 42 10 . Move 5323 | 40 596 143 264 547 413 31 832 491 308 812 846 Hop . | . . . . . . . . . . . . Pick Up 87 | 9 21 . 8 1 . . 33 7 7 . 1 Fast Attach 9 | . . . 1 1 4 . 1 1 . . 1 Attach 28 | 7 . . 2 . . . 13 1 . . 5 Detach 1 | . . . . . 1 . . . . . . Swap 60 | . 5 . 9 2 1 . 17 11 8 1 6 Drop 82 | . 9 . 12 4 4 . 27 11 12 . 3 Fire 279 | 3 54 . 35 10 . . 98 37 28 3 11 Melee 28 | . . . . . . . . 20 2 4 2 Ram . | . . . . . . . . . . . . Kick . | . . . . . . . . . . . . Crush 15 | . 1 1 . 2 . . 4 . 3 4 . Escape Stasis 4 | . . . . . . . . 4 . . . Rewire 23 | . . . . . . . . 23 . . . Trap . | . . . . . . . . . . . . Miscellaneous . | . . . . . . . . . . . . Route ------- -11/Scrapyard -10/Materials (discovered 4 exits: *Mat x2 / [*Min x2]) -10/Mines -9/Materials -9/Mines (discovered 3 exits: *Mat x2 / *Exi) -9/Exiles -8/Mines -8/Materials (discovered 5 exits: *Fac x2 / *Sto x2 / Gar) -8/Garrison (discovered 2 exits: *Sto x2) -8/Storage -8/Recycling (discovered 2 exits: *Fac / *Scr) -8/Scraptown (discovered 1 exit: *Fac) History --------- Turn | Location | Event 49 | -11/Scrapyard | Discovered new exit (range 12) 76 | -11/Scrapyard | Entered Materials 301 | -10/Materials | Discovered new exit (range 12) 303 | -10/Materials | Build established: Mutant 488 | -10/Materials | Discovered new exit (range 15) 1640 | -10/Materials | Discovered new exit (range 16) 1758 | -10/Materials | Discovered new exit (range 16) 1892 | -10/Materials | Entered Mines 2052 | -10/Mines | Found a hidden stash of uninstalled traps 2105 | -10/Mines | Discovered new exit (range 9) 2123 | -10/Mines | Entered Materials 2123 | -9/Materials | Evolved 2 slots: Utility x2 2153 | -9/Materials | Central database locked down 2732 | -9/Materials | Discovered new exit (range 13) 2756 | -9/Materials | Entered Mines 2926 | -9/Mines | Discovered new exit (range 5) 3245 | -9/Mines | Learned Materials stockpile data 3653 | -9/Mines | Discovered new exit (range 14) 3886 | -9/Mines | Deemed a non-threat by the Exiles lab entrance 3886 | -9/Mines | Discovered new exit (range 5) 3894 | -9/Mines | Entered Exiles 3944 | -9/Exiles | Met 8R-AWN 3978 | -9/Exiles | Met EX-HEX 4038 | -9/Exiles | Met EX-BIN 4062 | -9/Exiles | Aligned with FarCom system 4064 | -9/Exiles | Given EX-Vault access code 4110 | -9/Exiles | Opened EX-Vault 4120 | -9/Exiles | Found Prototype Device 4120 | -9/Exiles | Identified Cloak of Protection 4125 | -9/Exiles | Found Prototype Device 4125 | -9/Exiles | Identified Supersonic Drone Bay 4177 | -9/Exiles | Warned to stay clear of 0b10 Research branches 4287 | -9/Exiles | Met EX-DEC 4299 | -9/Exiles | Learned location of Zion (-7) 4376 | -9/Exiles | Visited The Gauntlet 4705 | -9/Exiles | Discovered new exit (range 14) 4729 | -9/Exiles | Left Exiles lab with Cloak of Protection 4729 | -9/Exiles | Entered Mines 4773 | -8/Mines | Discovered new exit (range 9) 4791 | -8/Mines | Entered Materials 4791 | -8/Materials | Evolved 2 slots: Utility x1, Weapon x1 5061 | -8/Materials | Discovered new exit (range 16) 5091 | -8/Materials | Identified exit to Factory 5097 | -8/Materials | Build established: Tank 5731 | -8/Materials | Build established: Skirmisher 5950 | -8/Materials | Lost 3 parts (1n1u1w) 6129 | -8/Materials | Discovered new exit (range 15) 6228 | -8/Materials | Identified exit to Storage 6494 | -8/Materials | Build established: Tank 6496 | -8/Materials | Discovered exit to Factory (range 5) 6566 | -8/Materials | Repaired Hpw. Shotgun 6786 | -8/Materials | Discovered exit to Storage (range 15) 7192 | -8/Materials | Garrison activated, responded to threat 7268 | -8/Materials | Destroyed 8 combat bots 7570 | -8/Materials | Identified exit to Garrison 7570 | -8/Materials | Entered Garrison 7716 | -8/Garrison | Core integrity fell below 50% 7894 | -8/Garrison | Triggered checkpoint 7921 | -8/Garrison | Build established: Mutant 8010 | -8/Garrison | Phase Generator disabled 8113 | -8/Garrison | Garrison Relay disabled 8178 | -8/Garrison | Garrison Relay disabled 8178 | -8/Garrison | Spotted B-75 Beast 8195 | -8/Garrison | Allies destroyed B-75 Beast 8378 | -8/Garrison | Triggered checkpoint 8448 | -8/Garrison | Triggered checkpoint 8470 | -8/Garrison | Garrison Relay disabled 8521 | -8/Garrison | Discovered exit to Storage (range 10) 8543 | -8/Garrison | Garrison Relay disabled 8630 | -8/Garrison | Triggered checkpoint 8640 | -8/Garrison | Build established: Skirmisher 8804 | -8/Garrison | Triggered checkpoint 8861 | -8/Garrison | Discovered exit to Storage (range 10) 8888 | -8/Garrison | Entered Storage 9240 | -8/Storage | Assisted by bots powering up and referring to "LRC-V3" 9581 | -8/Storage | Build established: Commander-Skirmisher 9688 | -8/Storage | First assault squad dispatched 9711 | -8/Storage | Used back door to open Recycling access 9711 | -8/Storage | Discovered new exit (range 4) 9716 | -8/Storage | Identified exit to Recycling 9730 | -8/Storage | Entered Recycling 9730 | -8/Recycling | Accompanied by 7 allies 10142 | -8/Recycling | Discovered new exit (range 16) 10174 | -8/Recycling | Identified exit to Factory 11527 | -8/Recycling | Scanned before Scraplab entrance 11558 | -8/Recycling | Entered Scraplab 11587 | -8/Recycling | Discovered new exit (range 2) 11587 | -8/Recycling | Identified exit to Scraptown 11598 | -8/Recycling | Entered Scraptown 11598 | -8/Scraptown | Accompanied by 7 allies 11661 | -8/Scraptown | Build established: Commander-Mutant 12197 | -8/Scraptown | Visited Cyclists 12260 | -8/Scraptown | Visited Bundlers 12311 | -8/Scraptown | Heard Great Nut preacher, LISTEN AND RECITE! 12683 | -8/Scraptown | Visited Fellowship of the Rings 12734 | -8/Scraptown | Visited The Evicted 12859 | -8/Scraptown | Visited Shadow of the Wyrm 12968 | -8/Scraptown | Discovered exit to Factory (range 5) 13145 | -8/Scraptown | Visited TADAMA 13209 | -8/Scraptown | Turned away by UFD registrar 13400 | -8/Scraptown | Attacked by Scraptown defenders 13493 | -8/Scraptown | Lost 7 allies 13569 | -8/Scraptown | Core integrity fell below 20% 13606 | -8/Scraptown | Destroyed by 0P-1RD(j) with Overtuned Pulse Rifle Last Messages --------------- 13592_ Critical hit (Burn: +50). 13592_ Siege Slug penetrates Wall. 13592_ Siege Slug penetrates Machine. 13592_ Machine disabled. 13594_ Siege Slug penetrates Wall. 13594_ Siege Slug penetrates Machine. 13596_ Penetrated by Siege Slug. 13596_ Adv. Treads destroyed. 13596_ Machine disabled. 13596_ Gauss Rifle destroyed. 13597_ 0A-OZB(j) heat short circuits Lgt. Deuterium Engine. 13598_ Siege Slug penetrates Wall. 13598_ Penetrated by Siege Slug. 13598_ Siege Slug penetrates Machine. 13600_ 0A-OZB(j) heat spikes uncontrollably. 13600_ 0A-OZB(j) overheating. 13602_ Siege Slug penetrates Machine. 13604_ Siege Slug penetrates Wall. 13606_ Critical hit (Burn: +50). Map ----- +----------------------------------------------------+ | | | | | | | | | | | | | | | | | | | | | | | | | | | ?????????????????????????????????????????????????? | | ????????????#???#?????????????????#########??????? | | ???????????"""?"""????????????????#"" ##?????? | | ??????????#" "#???????????????#" < #?##### | | ?????????? """ "#????########???#"" #?#""""" | | ??????????#" """ "#???#"""""""#???##### #?#" | | ??????????#" """ "#???#"" ""#???????# #?#" | | ?????????##" "#???#"" ""#???????# #?#" | | ????????##"" " """###?#""" "#???????# #?#" """ | | ?????#### ###" ""#??????## ###" | | ?#"" """" #;# """######## ##""""" | | ?#" """" | | ?#"" """ @ | | ?#""" j | | ?#""" " j ;;;;## ########### ####### | | ?#"" " j ;;#### ######????## ##?????? | | ??""""""" % j ;""""" """""#####?# ######## | | ???###### % #" " " #?# """""""" | | ????????###=j# ""#" " " "### ### " "" | | ??????????# !; " "#" " " "#"" """ " | | ??????????#[!;""" "#""""" """""#" """ " "" | | ??????????# #"" "###### ######" " """""""" | | ??????????# #" "#""""" """""#" ##"""### | | ??????????# """" ""#" " " "#" "" " ######?? | | ??????????" #### ###" " " "#" " #????### | | ??????????# #??# " " "#"""""" #????# # | | ??????????# #??#####""""" """""####### #???## " | | ?????????## ##?????###### ######?????# #???#" | | ?????????# ############ ############ #???# | | ?????????# #???# | | ?????????#% ! #???# | | ?????????# =!*######################### #???# | | ?????????##!%##??????????????????????# #???# | | ?????######[ ########???????????????### ######## | | #"""?"""""" """""""#??????????###### | | #" """"" " "#??????????#"X" # | | #" """"" =! "#??????????# # | +----------------------------------------------------+ Best States ------------- Heat Dissipation 53 Energy Generation 14 Energy Capacity 280 Matter Stores 300 Matter Capacity 300 Sight Range 16 Terrain Scan Density 10 Armor Coverage 225 Evasion (%) 50 Targeting Accuracy 8 Recoil Reduction 2 Offensive Hacking 12 Item Schematics ----------------- System Shield | -8/Recycling | Hacked Robot Schematics ------------------ None Fabricated ------------ Nothing Repaired ---------- Hpw. Shotgun | 3% | -8/Materials Studied --------- Lgt. Treads | -9/Materials | Hacked Assault Rifle | -9/Materials | Hacked Ion Engine | -9/Materials | Hacked Alien Tech Used ----------------- None Achievements -------------- You May Approach The Wall \\IAMDERELICT Challenges ------------ None Game ------ Seed SystemPhysicsSword Manual? 0 Play Time 01:23:41 Cumulative 74.4 hours Start 2026.09.19 @ 08:34:40 End 2026.09.19 @ 10:30:27 Sessions 1 Manual Loads 0 Difficulty Rogue Special Mode None Game No. 128 Rogue 128 Adventurer 0 Explorer 0 Win Type - Total 1 Types 1/0/0/0/0/0/0/0/0/0 Lore% 35 Gallery% 39 Achievement% 34 Wizard Run 0 Options --------- Layout 2 ASCII 0 Keyboard 0 Movement Mouse Keybinds 0 Fullscreen 1 Font 48/Smallcaps Map View 50x44 Zoom Use 0% Tactical HUD 1 Map Filters NONE Filters NONE Steam 1 RUN: 2267ce59-6192-43c8-be5d-9cc77e6f2bcf